bitfinex/quotes_BTCUSD_20260126
["timestamp","ask_amount","ask_price","bid_price","bid_amount"]
[1769417177336,0.01239172,88071.0,88048.0,0.02340073]
[1769417177337,0.0001456,88071.0,88051.0,0.05678471]
[1769417177544,0.0001456,88071.0,88055.0,1.11117217]
[1769417177770,0.0001456,88071.0,88052.0,0.00617135]
[1769417177771,0.0001456,88071.0,88057.0,0.02293836]
[1769417180421,0.0001456,88071.0,88059.0,0.09107413]
[1769417180639,0.0001456,88071.0,88051.0,0.00046586]
[1769417180640,0.09087371,88086.0,88063.0,0.05677695]
[1769417180783,0.01259669,88090.0,88067.0,0.02293836]
[1769417180784,0.08070895,88090.0,88067.0,0.02293836]
[1769417180971,0.01135228,88088.0,88067.0,0.02293836]
[1769417181187,0.09087371,88086.0,88067.0,0.02293836]
[1769417181395,0.09087371,88086.0,88067.0,0.0279374]
[1769417182250,0.11932021,88087.0,88067.0,0.0279374]
[1769417182802,0.17608229,88087.0,88067.0,0.0279374]
[1769417182998,0.05676306,88086.0,88067.0,0.0279374]
[1769417183198,0.01135292,88083.0,88067.0,0.02293836]
[1769417183394,0.01135305,88082.0,88067.0,0.02293836]
[1769417183656,0.01135331,88080.0,88067.0,0.02293836]
[1769417183855,0.06812011,88080.0,88067.0,0.02293836]
[1769417184058,0.01135357,88078.0,88061.0,0.02293836]
[1769417184460,0.06811955,88081.0,88061.0,0.02293836]
[1769417185417,0.01135331,88080.0,88061.0,0.02293836]
[1769417186428,0.01135344,88079.0,88061.0,0.02293836]
[1769417186825,0.06811996,88080.0,88061.0,0.02293836]
[1769417187247,0.01135344,88079.0,88061.0,0.02293836]
[1769417188003,0.06812066,88079.0,88061.0,0.02293836]
[1769417188219,0.01135344,88079.0,88061.0,0.02293836]
[1769417188421,0.01135357,88078.0,88061.0,0.02293836]
[1769417188621,0.06812079,88079.0,88061.0,0.02293836]
[1769417188822,0.01135344,88079.0,88061.0,0.02293836]
[1769417189025,0.06812009,88080.0,88061.0,0.02293836]
[1769417189604,0.01135344,88079.0,88061.0,0.02293836]
[1769417190250,0.01135318,88081.0,88061.0,0.02293836]
[1769417190388,0.01135331,88080.0,88061.0,0.02293836]
[1769417191243,0.07385945,88082.0,88061.0,0.02293836]
[1769417191446,0.01709409,88082.0,88063.0,0.02293836]
[1769417191648,0.01709409,88082.0,88062.0,0.00520203]
[1769417191649,0.00162033,88063.0,88062.0,1.16943785]
[1769417193821,0.00520191,88082.0,88062.0,0.02293836]
[1769417194022,0.01885408,88063.0,88061.0,1.14649949]
[1769417194169,0.01885408,88063.0,88062.0,1.16943785]
[1769417194939,0.04037844,88085.0,88062.0,1.05892936]
[1769417195132,1.01442638,88085.0,88064.0,1.01034875]
[1769417195267,0.9978718,88085.0,88064.0,1.02960056]
[1769417195473,0.9978718,88085.0,88065.0,0.00114223]
[1769417195780,0.06811451,88087.0,88066.0,0.02268906]
[1769417195981,0.01655432,88087.0,88068.0,1.08161842]
[1769417196247,0.09714028,88087.0,88068.0,1.07594231]
[1769417196535,0.02382386,88086.0,88068.0,1.07594231]
[1769417197315,0.0063472,88085.0,88068.0,1.07594231]
[1769417197934,0.01135279,88084.0,88057.0,1.07028564]
[1769417198132,0.02382386,88082.0,88060.0,0.02268906]
[1769417198307,0.02382386,88082.0,88062.0,0.02268906]
[1769417198506,0.02382386,88082.0,88063.0,1.08161842]
[1769417199160,0.02382386,88082.0,88064.0,0.00113563]
[1769417199362,0.02382386,88082.0,88064.0,1.08275405]
[1769417199566,0.02382386,88082.0,88064.0,1.08161842]
[1769417199891,0.03017106,88082.0,88064.0,1.08161842]
[1769417200100,0.04152411,88082.0,88064.0,1.08161842]
[1769417200307,0.03017106,88082.0,88064.0,1.08161842]
[1769417200939,0.02382386,88082.0,88064.0,1.05892936]
[1769417201161,0.02382386,88082.0,88066.0,1.05892936]
[1769417201384,0.02382386,88082.0,88067.0,0.00113549]
[1769417202025,0.0063472,88085.0,88067.0,1.08275391]
[1769417202249,0.02382386,88088.0,88067.0,1.08161842]
[1769417202711,0.02382386,88088.0,88067.0,1.05892936]
[1769417202907,0.0063472,88089.0,88071.0,1.05892936]
[1769417203155,0.0063472,88089.0,88072.0,0.02268906]
[1769417204289,0.09713603,88089.0,88072.0,0.02268906]
[1769417204507,0.09713603,88089.0,88063.0,0.06813184]
[1769417204508,0.0063472,88089.0,88073.0,0.02268906]
[1769417204743,0.0063472,88091.0,88076.0,1.05892936]
[1769417205259,0.09078883,88089.0,88076.0,1.05892936]
[1769417205400,0.0063472,88088.0,88076.0,1.05892936]
[1769417206137,0.0063472,88089.0,88077.0,1.08161842]
[1769417206406,0.09078883,88088.0,88077.0,1.08161842]
[1769417207164,0.06810685,88097.0,88077.0,1.08161842]
[1769417207165,0.15974188,88105.0,88078.0,0.02268906]
[1769417207362,0.02382386,88105.0,88082.0,0.02268906]
[1769417207567,1.11900746,88104.0,88084.0,0.02268906]
[1769417207786,1.11900746,88104.0,88084.0,1.08161842]
[1769417207974,1.11900746,88104.0,88075.0,0.0007313]
[1769417207976,0.02382386,88114.0,88090.0,0.02268906]
[1769417208323,0.02382386,88114.0,88093.0,0.02268906]
[1769417208324,0.02382386,88112.0,88093.0,0.02268906]
[1769417208463,0.02382386,88110.0,88093.0,0.02268906]
[1769417208893,0.0063472,88109.0,88093.0,0.02268906]
[1769417209092,0.02382386,88110.0,88093.0,0.02268906]
[1769417209292,0.0063472,88109.0,88093.0,0.02268906]
[1769417209496,0.02382386,88110.0,88093.0,1.08161842]
[1769417209667,0.0063472,88109.0,88093.0,1.08161842]
[1769417209872,0.02382386,88110.0,88093.0,1.08161842]
[1769417210101,0.0063472,88109.0,88093.0,1.08161842]
[1769417211183,0.03017106,88109.0,88093.0,1.08161842]
[1769417211380,0.02382386,88109.0,88093.0,1.08161842]
[1769417211591,0.03027692,88114.0,88094.0,0.02268906]
[1769417211786,0.00645306,88114.0,88094.0,1.08161842]
[1769417212013,0.02382386,88113.0,88094.0,1.08161842]
[1769417212218,0.03017106,88112.0,88094.0,1.08161842]
[1769417213277,0.03017106,88112.0,88095.0,0.02268906]
[1769417213705,0.02382386,88111.0,88094.0,1.05892936]
[1769417213987,0.03017106,88110.0,88094.0,1.05892936]
[1769417216755,0.02382386,88110.0,88095.0,0.00087206]
[1769417216967,0.00010586,88114.0,88095.0,1.05892936]
[1769417217164,0.00010586,88114.0,88096.0,1.08249047]
[1769417217364,0.00010586,88114.0,88096.0,1.08161842]
[1769417217955,0.00010586,88114.0,88096.0,1.05892936]
[1769417218157,0.00010586,88114.0,88098.0,1.05892936]
[1769417218356,0.00010586,88114.0,88099.0,0.00087202]
[1769417218708,0.00010586,88114.0,88099.0,1.08249044]
[1769417218839,0.00010586,88114.0,88099.0,1.08161842]
[1769417219043,0.00010586,88114.0,88100.0,0.00087201]
[1769417219881,0.00010586,88114.0,88100.0,1.05980137]
[1769417220129,0.00010586,88114.0,88100.0,1.05892936]
[1769417220280,0.00010586,88114.0,88101.0,0.000872]
[1769417222143,0.02382386,88113.0,88101.0,0.000872]
[1769417222346,0.02382386,88111.0,88094.0,0.000872]
[1769417222523,0.02382386,88111.0,88094.0,0.00200715]
[1769417223073,0.01769626,88113.0,88086.0,0.01135254]
[1769417223074,0.02382386,88109.0,88086.0,0.01135254]
[1769417223224,0.02382386,88109.0,88088.0,1.08161842]
[1769417223406,0.02382386,88109.0,88090.0,1.05892936]
[1769417223607,0.02382386,88109.0,88091.0,1.0619155]
[1769417223810,0.02382386,88109.0,88091.0,1.05892936]
[1769417229943,0.0063472,88110.0,88082.0,1.11693881]
[1769417229944,0.02470881,88104.0,88082.0,1.11693881]
[1769417230120,0.22938881,88101.0,88084.0,0.1744]
[1769417230318,0.01134932,88111.0,88086.0,0.02450196]
[1769417230527,0.02470881,88109.0,88089.0,1.11693881]
[1769417230700,0.03605864,88107.0,88089.0,1.11693881]
[1769417230910,0.02470881,88107.0,88089.0,1.11693881]
[1769417231495,0.09280872,88106.0,88089.0,1.11693881]
[1769417231680,0.03605877,88106.0,88089.0,1.11693881]
[1769417231934,0.02470881,88106.0,88089.0,1.11693881]
[1769417233116,0.03605877,88106.0,88089.0,1.11693881]
[1769417233298,0.02470881,88106.0,88089.0,1.11693881]
[1769417233908,0.03605877,88106.0,88089.0,1.11693881]
[1769417234318,0.03105601,88106.0,88089.0,1.11693881]
[1769417235042,0.02470881,88106.0,88089.0,1.11693881]
[1769417235428,0.03105601,88106.0,88090.0,0.01248722]
[1769417236161,0.02470881,88106.0,88090.0,1.12942603]
[1769417236366,0.0063472,88105.0,88090.0,1.11693881]
[1769417238039,0.0063472,88105.0,88088.0,0.02450196]
[1769417238219,0.2110272,88105.0,88088.0,0.02450196]
[1769417238603,0.23524658,88105.0,88088.0,0.02450196]
[1769417238787,0.22889938,88105.0,88088.0,0.02450196]
[1769417238993,0.06809926,88107.0,88077.0,0.11502857]
[1769417238995,0.01135073,88100.0,88077.0,0.11502857]
[1769417239203,0.01135073,88100.0,88077.0,0.19885726]
[1769417239204,0.02421938,88094.0,88077.0,0.19885726]
[1769417242828,0.02421938,88094.0,88077.0,0.19902526]
[1769417242829,0.20468,88093.0,88077.0,0.19902526]
[1769417246158,0.22889938,88093.0,88077.0,0.19902526]
[1769417247773,0.22889938,88093.0,88077.0,1.2786254]
[1769417248373,0.20468,88097.0,88077.0,1.25416814]
[1769417248572,0.20468,88097.0,88079.0,1.07960014]
[1769417248774,0.20468,88097.0,88080.0,0.0010172]
[1769417249427,0.0063472,88096.0,88079.0,1.1042254]
[1769417249630,0.2110272,88096.0,88079.0,1.1042254]
[1769417253294,0.2110272,88096.0,88080.0,0.00089608]
[1769417253433,0.02372741,88096.0,88079.0,1.1042254]
[1769417254147,0.03507866,88096.0,88079.0,0.02462526]
[1769417254378,0.05929804,88096.0,88079.0,0.02462526]
[1769417254576,0.04794679,88096.0,88079.0,0.02462526]
[1769417254779,0.04881202,88095.0,88079.0,0.02462526]
[1769417255774,0.01135138,88095.0,88079.0,0.000168]
[1769417256111,0.02327508,88093.0,88079.0,0.000168]
[1769417256308,0.02553694,88092.0,88079.0,0.000168]
[1769417256818,0.04881202,88092.0,88079.0,0.000168]
[1769417257324,0.02327508,88092.0,88077.0,0.140008]
[1769417257474,0.01135151,88094.0,88077.0,0.140008]
[1769417257475,0.01135163,88093.0,88078.0,0.00722257]
[1769417257679,0.01135163,88093.0,88077.0,0.140008]
[1769417257680,0.02553694,88087.0,88077.0,0.140008]
[1769417257885,0.02553694,88086.0,88077.0,0.140008]
[1769417258469,0.02327508,88086.0,88077.0,0.140008]
[1769417258759,0.01135215,88089.0,88069.0,0.05285689]
[1769417258760,0.02553694,88083.0,88069.0,0.05285689]
[1769417258933,0.02553694,88083.0,88069.0,0.0456335]
[1769417260978,0.02553694,88082.0,88069.0,0.0456335]
[1769417261957,0.02327508,88083.0,88069.0,0.0456335]
[1769417262177,0.04881202,88081.0,88069.0,0.0456335]
[1769417262384,0.04881202,88081.0,88069.0,0.0001935]
[1769417263725,0.02553694,88078.0,88069.0,0.0001935]
[1769417264407,0.01351564,88088.0,88069.0,0.0001935]
[1769417264617,0.00025537,88085.0,88069.0,0.0001935]
[1769417264789,0.01351564,88083.0,88069.0,0.0001935]
[1769417264987,0.00025537,88082.0,88069.0,0.0001935]
[1769417265358,0.0001017,88082.0,88069.0,0.0001935]
[1769417265996,0.01346367,88083.0,88069.0,0.0001935]
[1769417266197,0.05676634,88081.0,88069.0,0.0001935]
[1769417266436,0.01135331,88080.0,88069.0,0.0001935]
[1769417266617,0.06811998,88080.0,88069.0,0.0001935]
[1769417267063,0.01135331,88080.0,88069.0,0.0001935]
[1769417267262,0.01346367,88083.0,88069.0,0.0001935]
[1769417267462,0.01346367,88083.0,88069.0,0.0001]
[1769417267669,0.01346367,88083.0,88061.0,0.02431766]
[1769417267866,0.01346367,88083.0,88060.0,0.02431766]
[1769417268469,0.05676717,88080.0,88060.0,0.02431766]
[1769417269494,0.01135357,88078.0,88060.0,0.02431766]
[1769417269693,0.06812048,88080.0,88060.0,0.02431766]
[1769417269893,0.05676564,88082.0,88062.0,0.02431766]
[1769417270206,0.07022854,88083.0,88063.0,0.00686695]
[1769417270207,0.01135344,88079.0,88063.0,0.00686695]
[1769417270706,0.06812033,88080.0,88063.0,0.00686695]
[1769417271273,0.01135344,88079.0,88063.0,0.00686695]
[1769417271590,0.07708393,88082.0,88063.0,0.00686695]
[1769417271800,0.1008174,88081.0,88063.0,0.00686695]
[1769417271973,0.01135331,88080.0,88063.0,0.00686695]
[1769417272170,0.01135318,88081.0,88063.0,0.00686695]
[1769417272377,0.01135331,88080.0,88063.0,0.00686695]
[1769417273718,0.01135344,88079.0,88063.0,0.03118461]
[1769417274249,0.0203184,88082.0,88063.0,0.03118461]
[1769417274250,0.00896535,88082.0,88063.0,0.03118461]
[1769417274368,0.11999798,88082.0,88063.0,0.03118461]
[1769417274575,0.06323262,88082.0,88063.0,0.03118461]
[1769417274993,0.00896535,88082.0,88063.0,0.03118461]
[1769417275282,0.00896535,88082.0,88064.0,0.02431766]
[1769417275448,0.00896535,88082.0,88065.0,0.04702815]
[1769417276952,0.01135267,88085.0,88065.0,0.04702815]
[1769417276953,0.01135267,88085.0,88066.0,0.02431766]
[1769417277132,0.01135267,88085.0,88066.0,0.02271022]
[1769417277342,0.01135267,88085.0,88066.0,0.02431766]
[1769417277723,0.01135254,88086.0,88066.0,0.02431766]
[1769417277923,0.02031789,88086.0,88066.0,0.02431766]
[1769417278364,0.01135267,88085.0,88066.0,0.02431766]
[1769417278744,0.00896535,88086.0,88066.0,0.02431766]
[1769417278944,0.06825363,88088.0,88068.0,0.02431766]
[1769417278945,0.00013976,88088.0,88068.0,0.02431766]
[1769417279281,0.00013976,88088.0,88072.0,0.02431766]
[1769417280217,0.13632475,88098.0,88078.0,0.02431766]
[1769417280218,0.09075293,88097.0,88078.0,0.02431766]
[1769417280493,0.0001935,88098.0,88083.0,1.0701363]
[1769417280670,0.0001935,88098.0,88086.0,0.02431766]
[1769417280873,0.0001935,88098.0,88088.0,0.02431766]
[1769417282354,0.0001935,88098.0,88081.0,1.0701363]
[1769417282355,0.0001935,88098.0,88081.0,0.02431766]
[1769417282536,0.00996879,88088.0,88081.0,0.02431766]
[1769417282745,0.00996879,88088.0,88075.0,0.02431766]
[1769417282891,0.04404738,88088.0,88075.0,0.02431766]
[1769417284056,0.03407859,88088.0,88075.0,0.02431766]
[1769417284347,0.01135138,88095.0,88075.0,0.02431766]
[1769417284530,0.03407859,88094.0,88075.0,0.02431766]
[1769417284710,0.01360236,88095.0,88076.0,1.05716319]
[1769417284917,0.03407859,88094.0,88077.0,0.02293216]
[1769417287220,0.01360236,88095.0,88078.0,1.05716319]
[1769417287395,0.01360236,88095.0,88079.0,0.02293216]
[1769417288350,0.00013971,88095.0,88080.0,1.05716319]
[1769417288616,0.00013971,88095.0,88081.0,0.02293216]
[1769417289557,0.00013971,88095.0,88081.0,1.05716319]
[1769417289753,0.00013971,88095.0,88082.0,0.02293216]
[1769417291280,0.00013971,88095.0,88083.0,0.02293216]
[1769417291901,0.03407859,88094.0,88074.0,0.02293216]
[1769417292091,0.03407859,88091.0,88068.0,1.04553535]
[1769417292300,0.02416741,88090.0,88069.0,0.02293216]
[1769417292497,0.02416741,88090.0,88070.0,1.05716319]
[1769417292803,0.02416741,88090.0,88072.0,1.08009535]
[1769417293225,0.06975756,88090.0,88072.0,1.08009535]
[1769417294942,0.02416741,88090.0,88073.0,1.06303749]
[1769417295145,0.0384,88089.0,88073.0,1.05716319]
[1769417296320,0.0384,88089.0,88073.0,1.08009535]
[1769417296478,1.9650685,88138.0,88073.0,1.05716319]
[1769417296822,0.02416741,88098.0,88074.0,0.02293216]
[1769417297028,0.0004559,88095.0,88074.0,0.02293216]
[1769417298141,0.0004559,88095.0,88076.0,0.02465819]
[1769417298352,0.0004559,88095.0,88077.0,0.00473788]
[1769417298530,0.0388559,88095.0,88077.0,0.00473788]
[1769417298965,0.0388559,88095.0,88077.0,0.02939607]
[1769417299666,0.0384,88091.0,88073.0,0.00013971]
[1769417299874,0.02368674,88091.0,88073.0,0.00013971]
[1769417300031,0.02368674,88089.0,88067.0,1.08415251]
[1769417300241,0.0384,88103.0,88061.0,0.02465819]
[1769417300242,0.00992881,88086.0,88061.0,0.02465819]
[1769417300446,0.02368674,88083.0,88063.0,1.1183793]
[1769417300648,0.00992881,88082.0,88064.0,1.11643186]
[1769417300894,0.02368674,88080.0,88064.0,1.09372111]
[1769417301269,0.00013971,88086.0,88065.0,0.02465819]
[1769417301270,0.02368674,88085.0,88065.0,0.02465819]
[1769417301493,0.00013971,88086.0,88065.0,0.02465819]
[1769417301494,0.02368674,88084.0,88066.0,0.02271024]
[1769417301708,0.03361555,88084.0,88066.0,0.02271024]
[1769417302230,0.03361555,88084.0,88066.0,1.11643135]
[1769417302425,0.03361555,88084.0,88066.0,1.09372111]
[1769417303557,0.02368674,88084.0,88066.0,1.09372111]
[1769417303888,0.02368674,88084.0,88066.0,1.1183793]
[1769417305708,0.02368674,88084.0,88067.0,0.02465819]
[1769417305922,0.02368674,88084.0,88067.0,1.1183793]
[1769417310313,0.03361555,88084.0,88067.0,1.1183793]
[1769417312379,0.02368674,88084.0,88067.0,1.1183793]
[1769417314684,0.03361555,88084.0,88067.0,1.1183793]
[1769417315050,0.00013971,88086.0,88067.0,1.1183793]
[1769417315251,0.02451979,88083.0,88067.0,1.1183793]
[1769417316495,0.02451979,88083.0,88059.0,0.06813568]
[1769417316496,0.00013971,88086.0,88059.0,1.1152094]
[1769417316704,0.02451979,88082.0,88061.0,1.1152094]
[1769417316862,0.02451979,88082.0,88063.0,1.1152094]
[1769417317063,0.02451979,88082.0,88064.0,1.1198764]
[1769417317278,0.02451979,88082.0,88065.0,0.02251386]
[1769417317482,0.02451979,88082.0,88067.0,1.1152094]
[1769417317703,0.02451979,88082.0,88068.0,0.00580227]
[1769417317903,0.0384,88081.0,88068.0,0.00580227]
[1769417318542,0.00013971,88086.0,88068.0,0.00580227]
[1769417318743,0.00992881,88085.0,88061.0,1.12656516]
[1769417319047,0.00013971,88086.0,88060.0,0.06258204]
[1769417319048,0.06291979,88082.0,88062.0,1.14352627]
[1769417319245,0.06291979,88082.0,88062.0,1.13772326]
[1769417320039,0.06291979,88082.0,88063.0,0.02251386]
[1769417320236,0.06291979,88082.0,88065.0,1.1152094]
[1769417320443,0.06291979,88082.0,88066.0,0.00603049]
[1769417323433,0.06291979,88082.0,88066.0,1.12123989]
[1769417323651,0.06291979,88082.0,88066.0,1.1152094]
[1769417324838,0.06291979,88082.0,88067.0,0.0060269]
[1769417326403,0.0702379,88082.0,88067.0,0.0060269]
[1769417326938,0.00992881,88081.0,88064.0,0.02251386]
[1769417327084,0.00992881,88081.0,88065.0,0.00493272]
[1769417327929,0.02451979,88082.0,88066.0,1.1152094]
[1769417328128,0.0344486,88082.0,88067.0,0.02270998]
[1769417329349,0.10224518,88086.0,88064.0,0.02251386]
[1769417329547,0.0384,88085.0,88064.0,0.02251386]
[1769417329746,0.10224518,88086.0,88065.0,0.02271049]
[1769417329747,0.06291979,88083.0,88065.0,0.02271049]
[1769417330932,0.06291979,88083.0,88065.0,1.13791989]
[1769417331132,0.06291979,88083.0,88065.0,1.13772326]
[1769417332385,0.06291979,88083.0,88066.0,0.02271024]
[1769417333405,0.0384,88081.0,88066.0,0.02100005]
[1769417333618,0.0384,88079.0,88066.0,0.02100005]
[1769417333771,0.0384,88077.0,88066.0,0.02100005]
[1769417333973,0.0384,88075.0,88066.0,0.02100005]
[1769417334380,0.0384,88082.0,88066.0,0.02100005]
[1769417334597,0.0384,88080.0,88066.0,0.02100005]
[1769417334854,9.929e-05,88086.0,88067.0,0.02251386]
[1769417335148,9.929e-05,88086.0,88068.0,0.01928938]
[1769417336059,0.02135955,88085.0,88052.0,1.1152094]
[1769417336275,0.02135955,88079.0,88056.0,1.1152094]
[1769417336449,0.02135955,88078.0,88057.0,0.02251386]
[1769417336648,9.929e-05,88077.0,88057.0,0.02251386]
[1769417337867,9.929e-05,88077.0,88060.0,1.1152094]
[1769417338068,9.929e-05,88077.0,88061.0,0.02661059]
[1769417339004,9.929e-05,88077.0,88062.0,0.02251386]
[1769417339292,9.929e-05,88077.0,88063.0,0.02661049]
[1769417345041,0.07013874,88097.0,88063.0,0.02661049]
[1769417345184,0.17015151,88106.0,88063.0,0.02661049]
[1769417345592,0.17015151,88106.0,88063.0,1.0919453]
[1769417345808,0.17015151,88106.0,88064.0,0.02949726]
[1769417346087,0.06811553,88086.0,88066.0,0.02949726]
[1769417346305,0.06811553,88086.0,88067.0,0.00467877]
[1769417346969,0.01135279,88084.0,88067.0,0.00467877]
[1769417348112,0.06811717,88084.0,88067.0,0.00467877]
[1769417348313,0.01135292,88083.0,88067.0,0.00467877]
[1769417348512,0.06811761,88083.0,88067.0,0.00467877]
[1769417348728,0.01135305,88082.0,88067.0,0.00467877]
[1769417348933,0.19566688,88087.0,88067.0,0.00467877]
[1769417349649,0.0384,88090.0,88067.0,0.00467877]
[1769417355285,0.0384,88090.0,88067.0,0.01385424]
[1769417355489,0.0384,88090.0,88067.0,0.04110315]
[1769417355822,0.05676187,88088.0,88067.0,0.04110315]
[1769417356327,0.06811482,88087.0,88068.0,0.01442183]
[1769417356530,0.05676275,88086.0,88068.0,0.01442183]
[1769417357359,0.05676275,88086.0,88068.0,0.0394224]
[1769417357573,0.05676275,88086.0,88069.0,0.01442201]
[1769417357818,0.05676275,88086.0,88068.0,0.02500057]
[1769417359123,0.01135241,88087.0,88068.0,0.02500057]
[1769417359825,0.00468919,88089.0,88068.0,0.02500057]
[1769417360609,0.00468919,88089.0,88059.0,1.16219257]
[1769417360927,0.00468919,88089.0,88060.0,0.02436134]
[1769417361140,0.05676834,88078.0,88060.0,0.02436134]
[1769417361913,0.84139801,88077.0,88060.0,0.02436134]
[1769417362551,0.83240456,88077.0,88059.0,0.02436134]
[1769417362763,0.83240456,88077.0,88061.0,0.02436134]
[1769417362961,0.83255736,88077.0,88061.0,0.02436134]
[1769417370126,0.85504477,88077.0,88061.0,0.02436134]
[1769417371216,0.06812434,88075.0,88052.0,0.00046586]
[1769417371380,0.03283733,88074.0,88052.0,0.00046586]
[1769417371587,0.01135408,88074.0,88052.0,0.00046586]
[1769417371845,0.00832404,88071.0,88052.0,0.00046586]
[1769417372037,0.03283733,88069.0,88052.0,0.00046586]
[1769417373015,0.02451329,88065.0,88052.0,0.00046586]
[1769417373250,0.03283733,88065.0,88052.0,0.00046586]
[1769417374392,0.06812925,88068.0,88052.0,0.00046586]
[1769417374393,0.01135486,88068.0,88052.0,0.00046586]
[1769417374544,0.0001528,88071.0,88052.0,0.00046586]
[1769417374748,0.11326732,88070.0,88052.0,0.00046586]
[1769417375105,0.01135589,88060.0,88052.0,0.00046586]
[1769417375322,0.14492105,88059.0,88052.0,0.00046586]
[1769417375498,0.01135628,88057.0,88052.0,0.00046586]
[1769417375698,0.14492105,88056.0,88040.0,0.0001396]
[1769417376023,0.11326732,88055.0,88040.0,0.0001396]
[1769417376262,0.03211951,88056.0,88040.0,0.0001396]
[1769417376471,0.11317075,88055.0,88040.0,0.0001396]
[1769417376661,0.11317075,88054.0,88041.0,1.14953856]
[1769417376859,0.02379547,88056.0,88041.0,1.14953856]
[1769417377058,0.11316453,88055.0,88041.0,1.14953856]
[1769417377364,0.02379547,88056.0,88041.0,1.14953856]
[1769417377564,0.11312913,88055.0,88041.0,1.14953856]
[1769417377778,0.02379547,88056.0,88041.0,1.14953856]
[1769417377975,0.11312749,88055.0,88041.0,1.14953856]
[1769417378133,0.02379547,88056.0,88041.0,1.14953856]
[1769417379968,0.01182218,88056.0,88040.0,0.0001396]
[1769417380177,0.02332969,88053.0,88040.0,0.0001396]
[1769417380579,0.03165373,88053.0,88040.0,0.0001396]
[1769417383111,0.02332969,88053.0,88040.0,0.0001396]
[1769417386750,0.04301052,88053.0,88040.0,0.0001396]
[1769417387085,0.03165373,88053.0,88040.0,0.0001396]
[1769417389932,0.00046578,88056.0,88040.0,0.0001396]
[1769417390133,0.11301828,88055.0,88040.0,1.17352426]
[1769417390276,0.11301828,88054.0,88040.0,1.17352426]
[1769417390482,0.00046578,88056.0,88042.0,0.0238461]
[1769417390686,0.00046578,88056.0,88040.0,0.01149807]
[1769417390687,0.04544,88067.0,88052.0,1.14953856]
[1769417390908,0.04544,88067.0,88055.0,0.0238461]
[1769417391167,0.04544,88067.0,88058.0,1.14953856]
[1769417391288,0.04544,88067.0,88060.0,1.14953856]
[1769417391488,0.0001528,88071.0,88060.0,1.14953856]
[1769417392401,0.0384,88091.0,88060.0,1.14953856]
[1769417392402,0.0001462,88080.0,88063.0,1.14953856]
[1769417392619,0.0001462,88080.0,88060.0,0.05677895]
[1769417392620,0.0001462,88080.0,88066.0,0.0238461]
[1769417392937,0.0001462,88080.0,88069.0,0.0238461]
[1769417394728,0.0001462,88080.0,88072.0,1.14953856]
[1769417394969,0.0001462,88080.0,88070.0,0.0238461]
[1769417397877,0.0001462,88080.0,88071.0,1.14953856]
[1769417398095,0.02347589,88089.0,88075.0,1.14953856]
[1769417398096,0.0001462,88089.0,88075.0,1.14953856]
[1769417398324,0.0001462,88089.0,88076.0,1.17338466]
[1769417401777,0.0001462,88089.0,88071.0,0.0238461]
[1769417401971,0.0001462,88089.0,88053.0,0.01135679]
[1769417401972,0.0086165,88089.0,88053.0,0.01135679]
[1769417402322,0.0084703,88085.0,88063.0,1.14953856]
[1769417402469,0.11311502,88084.0,88066.0,0.0238461]
[1769417402717,0.11311502,88083.0,88067.0,0.0238461]
[1769417402912,0.11311502,88082.0,88067.0,0.0238461]
[1769417403113,0.12675949,88081.0,88067.0,0.0238461]
[1769417403346,0.11311502,88080.0,88067.0,0.0238461]
[1769417403502,0.0084703,88078.0,88061.0,1.14953856]
[1769417403697,0.12441753,88079.0,88059.0,0.0238461]
[1769417403698,0.04315382,88076.0,88059.0,0.0238461]
[1769417403902,0.01135395,88075.0,88059.0,0.0238461]
[1769417404183,0.01982425,88075.0,88059.0,0.0238461]
[1769417404534,0.04315394,88075.0,88059.0,0.0238461]
[1769417405343,0.03179999,88075.0,88059.0,0.0238461]
[1769417407402,0.02412085,88074.0,88059.0,0.0238461]
[1769417407552,0.02412085,88074.0,88058.0,0.0001462]
[1769417407966,0.008327,88073.0,88058.0,0.0001462]
[1769417409187,0.02412085,88074.0,88059.0,1.16455825]
[1769417409543,0.008327,88080.0,88059.0,1.18738452]
[1769417409544,0.02412085,88079.0,88059.0,1.18738452]
[1769417409750,0.11302317,88078.0,88059.0,1.18738452]
[1769417409921,0.11302317,88077.0,88060.0,0.02282627]
[1769417410230,0.05676492,88083.0,88060.0,0.02282627]
[1769417410231,0.02426705,88089.0,88065.0,1.16455825]
[1769417410376,0.02426705,88089.0,88068.0,0.02282627]
[1769417410377,0.0001462,88089.0,88068.0,0.02282627]
[1769417410579,0.0001462,88089.0,88071.0,1.16455825]
[1769417410778,0.0001462,88089.0,88065.0,0.06813114]
[1769417410779,0.0001462,88089.0,88073.0,1.18738452]
[1769417412317,0.0001462,88089.0,88074.0,0.02270817]
[1769417412941,0.0001462,88089.0,88074.0,1.18726642]
[1769417413163,0.0001462,88089.0,88074.0,1.16455825]
[1769417415134,0.0384,88100.0,88075.0,0.02282627]
[1769417415135,0.444453,88098.0,88075.0,0.02282627]
[1769417415343,0.09542475,88095.0,88075.0,0.02282627]
[1769417415528,0.09542475,88094.0,88075.0,0.02282627]
[1769417415887,0.09542475,88094.0,88075.0,0.02182627]
[1769417416029,0.10677626,88094.0,88075.0,0.02182627]
[1769417416238,0.09542475,88093.0,88075.0,0.02182627]
[1769417416445,0.09542475,88093.0,88075.0,0.02196627]
[1769417417399,0.10677638,88093.0,88075.0,0.02196627]
[1769417417580,0.09542475,88093.0,88075.0,0.02196627]
[1769417418435,0.09542475,88093.0,88077.0,0.0247946]
[1769417418658,0.09542475,88093.0,88077.0,0.02471684]
[1769417418995,0.15665362,88110.0,88077.0,0.02471684]
[1769417419231,0.0001531,88140.0,88082.0,0.0247946]
[1769417419232,0.09045605,88104.0,88082.0,0.0247946]
[1769417419432,0.09045605,88106.0,88085.0,1.12707693]
[1769417419753,0.09045605,88106.0,88086.0,1.15179377]
[1769417419754,0.11867531,88106.0,88086.0,1.15179377]
[1769417419968,0.11867531,88105.0,88086.0,1.15179377]
[1769417420168,0.11867531,88105.0,88086.0,1.15171601]
[1769417420375,0.09542475,88104.0,88086.0,1.15171601]
[1769417420780,0.09542475,88104.0,88087.0,0.0247946]
[1769417421858,0.09542475,88104.0,88081.0,0.00014]
[1769417421859,0.00012693,88105.0,88089.0,0.0247946]
[1769417422076,0.00012693,88105.0,88091.0,1.15187153]
[1769417422295,0.09045605,88110.0,88091.0,1.12352168]
[1769417422504,0.11370661,88110.0,88092.0,0.01235015]
[1769417422752,0.09045605,88105.0,88092.0,0.00647911]
[1769417422963,0.09045605,88105.0,88091.0,0.00012693]
[1769417423131,0.02325056,88105.0,88091.0,0.00012693]
[1769417425086,0.02293247,88105.0,88091.0,0.00012693]
[1769417425319,0.02006687,88105.0,88091.0,0.00012693]
[1769417428986,0.02325056,88103.0,88091.0,0.00012693]
[1769417429165,0.03460091,88103.0,88091.0,0.00012693]
[1769417429370,0.02325056,88103.0,88091.0,0.00012693]
[1769417434182,0.02325056,88103.0,88091.0,0.02283072]
[1769417434434,0.02325056,88103.0,88091.0,0.01586692]
[1769417434594,0.02325056,88103.0,88090.0,1.12707693]
[1769417434954,0.02325056,88103.0,88091.0,0.00636245]
[1769417436105,0.02326405,88110.0,88092.0,1.07847508]
[1769417436310,0.02326405,88110.0,88094.0,1.07847508]